bitfinex/quotes_SOLUSD_20240808
["timestamp","ask_amount","ask_price","bid_price","bid_amount"]
[1723099906136,45.0,154.53,154.45,20.0]
[1723099906334,0.34,154.52,154.45,20.0]
[1723099908063,6.4691,154.58,154.45,20.0]
[1723099908064,28.2,154.58,154.46,1.29457417]
[1723099908224,28.2,154.6,154.47,63.8528]
[1723099908419,28.2,154.6,154.49,63.6384]
[1723099908729,28.2,154.6,154.5,20.0]
[1723099909735,0.34,154.59,154.5,20.0]
[1723099910125,28.2,154.56,154.49,35.4384]
[1723099910328,45.34,154.55,154.49,35.4384]
[1723099911416,28.2,154.54,154.49,35.4384]
[1723099911638,0.34,154.53,154.49,35.4384]
[1723099912028,28.2,154.52,154.49,35.4384]
[1723099912341,0.34,154.51,154.49,35.4384]
[1723099912726,28.2,154.5,154.41,34.4057]
[1723099912930,0.67434309,154.49,154.41,34.4057]
[1723099913139,45.67434309,154.49,154.41,34.4057]
[1723099913444,0.33434309,154.48,154.41,34.4057]
[1723099913623,0.17,154.47,154.41,34.4057]
[1723099913824,0.34,154.47,154.41,34.4057]
[1723099916839,0.34,154.48,154.41,34.4057]
[1723099917141,0.34,154.49,154.41,34.4057]
[1723099919144,0.34,154.49,154.42,1.29480703]
[1723099919372,417.3,154.54,154.43,28.2]
[1723099919662,0.17,154.53,154.43,28.2]
[1723099920055,0.17,154.53,154.42,20.0]
[1723099920637,45.17,154.53,154.42,20.0]
[1723099920962,28.53434309,154.54,154.43,29.49466336]
[1723099920963,28.2,154.54,154.43,29.49466336]
[1723099921150,28.2,154.54,154.44,34.6085]
[1723099921461,28.2,154.54,154.44,54.6085]
[1723099922238,45.34,154.53,154.44,54.6085]
[1723099922637,28.53434309,154.52,154.44,54.6085]
[1723099922848,45.34,154.51,154.44,54.6085]
[1723099923263,45.34,154.51,154.44,34.6085]
[1723099924845,45.67434309,154.51,154.44,34.6085]
[1723099925041,0.34,154.51,154.44,34.6085]
[1723099925758,28.2,154.5,154.44,34.6085]
[1723099925942,28.2,154.48,154.38,36.9615]
[1723099926137,0.50434309,154.47,154.38,36.9615]
[1723099926338,0.17,154.46,154.38,36.9615]
[1723099926550,0.33434309,154.45,154.38,36.9615]
[1723099926745,0.34,154.44,154.38,36.9615]
[1723099927652,45.34,154.45,154.38,36.9615]
[1723099939058,34.6759,154.42,154.37,6.76777662]
[1723099939263,45.17,154.41,154.37,6.76777662]
[1723099939561,28.2,154.47,154.37,6.76777662]
[1723099939762,0.17,154.46,154.37,6.76777662]
[1723099939961,0.50434309,154.46,154.37,6.76777662]
[1723099940756,45.50434309,154.46,154.37,6.76777662]
[1723099940956,0.33434309,154.46,154.37,6.76777662]
[1723099941253,0.33434309,154.48,154.38,26.6885]
[1723099942267,45.33434309,154.48,154.38,26.6885]
[1723099942468,417.3,154.51,154.39,10.698]
[1723099942670,49.08335777,154.56,154.42,28.2]
[1723099942671,389.1,154.5,154.42,28.2]
[1723099943996,0.17,154.49,154.42,28.2]
[1723099944197,45.34,154.49,154.42,28.2]
[1723099945385,389.1,154.5,154.44,28.2]
[1723099945891,71.81415933,154.63,154.48,28.2]
[1723099945892,20.01845933,154.63,154.48,28.2]
[1723099946200,35.00134309,154.64,154.5,28.2]
[1723099946701,6.76928384,154.65,154.54,28.2]
[1723099946875,28.53434309,154.66,154.54,28.2]
[1723099947196,6.4662,154.65,154.54,28.2]
[1723099947497,28.2,154.66,154.54,28.2]
[1723099947672,28.53434309,154.66,154.55,20.0]
[1723099948271,28.2,154.66,154.55,20.0]
[1723099949815,0.33434309,154.65,154.55,20.0]
[1723099950193,0.17,154.64,154.55,20.0]
[1723099950411,0.50434309,154.64,154.55,20.0]
[1723099950586,28.87434309,154.64,154.55,20.0]
[1723099950788,45.0,154.63,154.53,35.1754]
[1723099950987,0.34,154.62,154.53,63.3754]
[1723099951187,28.2,154.66,154.54,20.0]
[1723099952412,28.2,154.64,154.54,20.0]
[1723099952711,28.2,154.62,154.54,20.0]
[1723099952878,0.17,154.61,154.54,20.0]
[1723099953078,389.1,154.65,154.57,28.2]
[1723099953383,389.1,154.65,154.58,20.0]
[1723099954712,389.1,154.65,154.56,20.0]
[1723099954886,0.67434309,154.64,154.56,20.0]
[1723099955088,0.34,154.64,154.56,20.0]
[1723099955293,0.34,154.64,154.57,1.29353324]
[1723099955578,389.1,154.74,154.58,62.4495]
[1723099955778,389.1,154.74,154.6,28.2]
[1723099955982,28.2,154.73,154.61,35.2433]
[1723099956209,28.2,154.73,154.62,20.0]
[1723099957384,28.53434309,154.73,154.62,20.0]
[1723099957593,28.2,154.71,154.62,20.0]
[1723099957797,45.34,154.7,154.62,20.0]
[1723099958608,28.2,154.73,154.64,25.1481]
[1723099958913,28.2,154.73,154.65,20.0]
[1723099959697,0.33434309,154.72,154.65,20.0]
[1723099959890,0.34,154.71,154.65,20.0]
[1723099961119,0.34,154.71,154.65,21.29291914]
[1723099961722,0.34,154.71,154.65,20.0]
[1723099962215,28.2,154.75,154.65,20.0]
[1723099962601,28.2,154.73,154.65,20.0]
[1723099962917,0.33434309,154.72,154.65,20.0]
[1723099963294,28.37,154.71,154.64,25.1481]
[1723099963496,45.17,154.7,154.64,25.1481]
[1723099963715,0.17,154.69,154.64,25.1481]
[1723099964918,0.50434309,154.69,154.64,25.1481]
[1723099965117,0.17,154.68,154.64,25.1481]
[1723099965514,45.17,154.68,154.64,25.1481]
[1723099965724,0.17,154.67,154.64,25.1481]
[1723099967212,28.70434309,154.67,154.64,25.1481]
[1723099967413,45.17,154.66,154.64,25.1481]
[1723099967613,0.50434309,154.65,154.64,25.1481]
[1723099967831,0.67434309,154.65,154.64,25.1481]
[1723099968045,0.34,154.65,154.63,9.7407]
[1723099968231,0.17,154.64,154.63,9.7407]
[1723099969528,28.53434309,154.7,154.63,9.7407]
[1723099970044,28.2,154.7,154.63,9.7407]
[1723099970707,28.2,154.68,154.63,9.7407]
[1723099970908,0.50434309,154.67,154.63,9.7407]
[1723099971439,0.17,154.66,154.63,9.7407]
[1723099971616,45.34,154.67,154.63,9.7407]
[1723099973825,45.67434309,154.67,154.63,9.7407]
[1723099974208,45.34,154.67,154.63,9.7407]
[1723099976843,45.67434309,154.67,154.63,9.7407]
[1723099978337,45.34,154.67,154.63,9.7407]
[1723099978539,47.66,154.64,154.56,124.94503183]
[1723099978720,28.2,154.57,154.49,35.2205]
[1723099978911,28.2,154.55,154.49,35.2205]
[1723099979112,45.34,154.54,154.49,35.2205]
[1723099980143,0.34,154.54,154.49,35.2205]
[1723099980744,28.2,154.57,154.49,35.2205]
[1723099980941,0.17,154.56,154.49,35.2205]
[1723099981148,0.34,154.56,154.49,35.2205]
[1723099981340,0.34,154.56,154.5,21.29415504]
[1723099981641,0.34,154.56,154.5,20.0]
[1723099984950,0.34,154.56,154.51,1.29411888]
[1723099985342,0.34,154.56,154.5,20.0]
[1723099990745,0.17,154.56,154.5,20.0]
[1723099991258,0.17,154.56,154.51,1.29409548]
[1723099991562,28.2,154.61,154.5,20.0]
[1723099991763,45.17,154.6,154.5,20.0]
[1723099992155,0.17,154.59,154.5,20.0]
[1723099993643,2.67009343,154.64,154.51,66.14373168]
[1723099993857,417.63434309,154.64,154.52,20.0]
[1723099994950,45.34,154.63,154.52,20.0]
[1723099995145,45.67434309,154.63,154.52,20.0]
[1723099995546,28.2,154.62,154.52,20.0]
[1723099995772,0.33434309,154.61,154.52,20.0]
[1723099996147,28.2,154.62,154.52,20.0]
[1723099997364,45.34,154.61,154.52,20.0]
[1723099999058,45.67434309,154.61,154.52,20.0]
[1723099999561,45.34,154.61,154.52,20.0]
[1723100001070,45.34,154.61,154.54,10.525]
[1723100003061,45.67434309,154.61,154.54,10.525]
[1723100003771,0.33434309,154.6,154.54,10.525]
[1723100003964,0.34,154.59,154.54,10.525]
[1723100005268,0.34,154.6,154.54,10.525]
[1723100009685,19.32,154.59,154.54,10.525]
[1723100009986,45.34,154.58,154.54,10.525]
[1723100010158,19.32,154.57,154.54,10.525]
[1723100010359,19.66,154.56,154.54,10.525]
[1723100010571,0.17,154.56,154.54,10.525]
[1723100010772,0.17,154.56,154.53,25.2326]
[1723100010773,19.32,154.55,154.53,25.2326]
[1723100010964,19.49,154.54,154.53,25.2326]
[1723100011287,64.66,154.54,154.53,25.2326]
[1723100012167,45.34,154.54,154.53,25.2326]
[1723100012374,64.66,154.54,154.53,25.2326]
[1723100013373,0.34,154.54,154.53,25.2326]
[1723100022078,28.52,154.54,154.48,25.8684]
[1723100022271,45.17,154.53,154.48,25.8684]
[1723100022586,0.17,154.52,154.48,25.8684]
[1723100033877,45.34,154.53,154.48,25.8684]
[1723100034094,0.17,154.52,154.48,25.8684]
[1723100038697,19.5,154.52,154.48,25.8684]
[1723100038903,45.17,154.51,154.48,25.8684]
[1723100039109,19.5,154.51,154.48,25.8684]
[1723100039290,45.17,154.5,154.48,25.8684]
[1723100039597,0.17,154.49,154.48,25.8684]
[1723100040380,389.1,154.55,154.48,25.8684]
[1723100040589,19.33,154.52,154.48,25.8684]
[1723100041189,0.33434309,154.51,154.48,25.8684]
[1723100041781,0.34,154.5,154.48,25.8684]
[1723100042204,0.34,154.51,154.48,25.8684]
[1723100042705,389.1,154.55,154.48,25.8684]
[1723100043003,19.33,154.54,154.48,45.1984]
[1723100043988,0.34,154.53,154.48,45.1984]
[1723100044805,19.33,154.55,154.48,45.1984]
[1723100044806,0.17,154.52,154.48,45.1984]
[1723100045009,45.34,154.54,154.48,45.1984]
[1723100045804,45.34,154.54,154.49,19.33]
[1723100046604,45.34,154.54,154.48,45.1984]
[1723100047179,45.34,154.54,154.49,19.33]
[1723100047400,0.34,154.54,154.49,19.33]
[1723100048284,0.34,154.54,154.48,25.8684]
[1723100048484,19.67,154.54,154.48,25.8684]
[1723100048708,19.33,154.52,154.48,25.8684]
[1723100048911,64.83434309,154.51,154.48,25.8684]
[1723100049207,19.67,154.51,154.48,25.8684]
[1723100049412,45.0,154.5,154.48,25.8684]
[1723100049582,0.34,154.49,154.48,25.8684]
[1723100049785,0.34,154.49,154.47,10.2203]
[1723100049984,19.67,154.49,154.44,24.9237]
[1723100050207,45.0,154.48,154.44,24.9237]
[1723100050384,0.34,154.47,154.44,24.9237]
[1723100050779,0.34,154.47,154.44,44.2537]
[1723100050985,19.33,154.53,154.46,19.33]
[1723100051201,389.1,154.58,154.49,19.33]
[1723100051412,19.33,154.56,154.5,19.33]
[1723100052296,19.33,154.56,154.5,44.6312]
[1723100052496,19.33,154.57,154.51,19.33]
[1723100053100,19.33,154.57,154.5,44.6312]
[1723100053495,19.33,154.56,154.5,44.6312]
[1723100053896,19.33,154.54,154.5,25.3012]
[1723100054216,45.34,154.55,154.5,25.3012]
[1723100054217,0.34,154.53,154.5,25.3012]
[1723100054523,0.17,154.52,154.5,25.3012]
[1723100054816,45.34,154.55,154.5,25.3012]
[1723100055518,0.34,154.55,154.5,44.6312]
[1723100056526,0.34,154.55,154.5,25.3012]
[1723100056721,19.67,154.55,154.5,25.3012]
[1723100056896,64.67,154.55,154.5,25.3012]
[1723100059929,19.33,154.53,154.5,25.3012]
[1723100060099,0.34,154.52,154.5,25.3012]
[1723100060499,395.5691,154.59,154.5,25.3012]
[1723100060712,19.33,154.54,154.5,25.3012]
[1723100061503,19.33,154.53,154.5,25.3012]
[1723100061922,0.34,154.52,154.5,25.3012]
[1723100063721,19.33,154.51,154.46,35.3581]
[1723100063923,0.34,154.5,154.46,35.3581]
[1723100064427,0.17,154.5,154.46,35.3581]
[1723100064621,19.67,154.51,154.46,35.3581]
[1723100066610,19.33,154.5,154.46,35.3581]
[1723100066930,0.17,154.49,154.46,35.3581]
[1723100067133,19.67,154.49,154.46,35.3581]
[1723100067308,19.5,154.48,154.46,35.3581]
[1723100067624,0.17,154.49,154.46,35.3581]
[1723100067817,0.34,154.49,154.46,35.3581]
[1723100067995,0.34,154.49,154.46,54.6881]
[1723100068335,0.17,154.5,154.46,35.3581]
[1723100068547,0.34,154.5,154.46,35.3581]
[1723100068998,0.34,154.5,154.46,54.6881]
[1723100069201,0.34,154.51,154.46,54.6881]
[1723100072735,0.34,154.51,154.46,35.3581]
[1723100073338,19.67,154.51,154.46,35.3581]
[1723100073518,20.00434309,154.51,154.46,35.3581]
[1723100074015,19.33,154.5,154.46,35.3581]
[1723100074420,0.17,154.49,154.46,35.3581]
[1723100074719,19.33,154.47,154.39,35.8683]
[1723100075040,19.33,154.45,154.39,35.8683]
[1723100075534,19.33,154.45,154.39,55.1983]
[1723100075735,0.34,154.46,154.41,19.33]
[1723100075926,64.33,154.49,154.42,19.33]
[1723100076126,64.33,154.49,154.42,20.62486332]
[1723100076434,0.34,154.48,154.42,20.62486332]
[1723100076625,0.34,154.48,154.43,19.33]
[1723100080333,19.33,154.53,154.47,19.33]
[1723100081421,0.17,154.52,154.47,19.33]
[1723100081629,45.34,154.52,154.47,19.33]
[1723100081811,64.67,154.52,154.46,19.33]
[1723100083618,64.67,154.52,154.45,19.33]
[1723100084656,64.67,154.52,154.46,19.33]
[1723100085147,64.67,154.52,154.45,19.33]
[1723100086730,19.33,154.51,154.45,19.33]
[1723100086931,0.34,154.5,154.45,19.33]
[1723100089730,0.34,154.51,154.45,19.33]
[1723100090553,19.67,154.51,154.45,19.33]
[1723100091057,0.34,154.51,154.45,19.33]
[1723100091256,19.67,154.51,154.45,19.33]
[1723100095646,0.34,154.51,154.45,19.33]
[1723100095844,19.67,154.51,154.45,19.33]
[1723100098667,20.00434309,154.51,154.44,36.6052]
[1723100098846,64.33,154.5,154.44,55.9352]
[1723100099162,0.34,154.49,154.44,55.9352]
[1723100099461,19.67,154.49,154.44,36.6052]
[1723100100057,20.00434309,154.49,154.44,36.6052]
[1723100100553,19.67,154.49,154.42,19.33]
[1723100100746,9.0793897,154.58,154.47,19.33]
[1723100100950,19.33,154.53,154.47,19.33]
[1723100101152,19.33,154.52,154.45,19.33]
[1723100101370,26.13464309,154.56,154.45,19.33]
[1723100101371,19.33,154.51,154.45,19.33]
[1723100101579,19.33,154.52,154.45,19.33]
[1723100102146,0.17,154.51,154.45,19.33]
[1723100102443,45.34,154.51,154.45,19.33]
[1723100103470,0.34,154.51,154.47,9.7894]
[1723100103681,0.34,154.51,154.47,29.1194]
[1723100103862,0.34,154.52,154.48,1.29446893]
[1723100105274,408.43,154.57,154.48,20.0]
[1723100105468,19.33,154.55,154.49,19.33]
[1723100106458,0.34,154.54,154.49,19.33]
[1723100107154,395.86398412,154.61,154.5,19.33]
[1723100107357,2.59361618,154.62,154.51,19.33]
[1723100107556,19.33,154.56,154.5,19.33]
[1723100107855,0.33434309,154.62,154.48,20.0]
[1723100107856,19.33,154.54,154.48,39.33]
[1723100108057,19.33,154.55,154.49,19.33]
[1723100108274,395.90234309,154.61,154.48,39.33]
[1723100108275,19.33,154.54,154.48,39.33]
[1723100108496,0.17,154.53,154.48,39.33]
[1723100108777,19.33,154.54,154.48,39.33]
[1723100108961,19.33,154.55,154.48,39.33]
[1723100109468,0.17,154.54,154.48,39.33]
[1723100109665,0.17,154.54,154.48,20.0]
[1723100109846,0.17,154.54,154.49,19.33]
[1723100110052,19.33,154.57,154.51,19.33]
[1723100110459,19.33,154.56,154.5,25.5498]
[1723100110868,6.4679,154.61,154.5,25.5498]
[1723100111048,402.33243994,154.63,154.5,44.8798]
[1723100111247,19.33,154.56,154.5,44.8798]
[1723100112175,19.33,154.56,154.5,25.5498]
[1723100112357,0.34,154.55,154.5,44.8798]
[1723100112562,2.59728243,154.64,154.51,29.3452]
[1723100112866,19.33,154.58,154.51,29.3452]
[1723100113259,395.86551549,154.63,154.51,29.3452]
[1723100113260,19.33,154.57,154.51,29.3452]
[1723100113854,0.17,154.56,154.51,29.3452]
[1723100115569,19.5,154.56,154.51,10.0152]
[1723100115766,19.5,154.55,154.51,10.0152]
[1723100115967,0.17,154.54,154.51,10.0152]
[1723100117891,19.5,154.54,154.51,10.0152]
[1723100118061,19.5,154.53,154.5,25.5498]
[1723100118262,0.17,154.52,154.5,25.5498]
[1723100118486,0.34,154.52,154.5,25.5498]
[1723100121286,0.34,154.53,154.5,25.5498]
[1723100121495,0.17,154.51,154.5,25.5498]
[1723100122499,0.17,154.53,154.5,25.5498]
[1723100122675,19.33,154.55,154.51,1.2942421]
[1723100123007,0.34,154.54,154.51,1.2942421]
[1723100123684,0.34,154.54,154.52,6.9696]
[1723100124068,389.1,154.6,154.53,1.29424071]
[1723100124268,389.1,154.6,154.53,19.33]
[1723100124582,19.33,154.58,154.52,26.2996]
[1723100124885,19.33,154.57,154.52,6.9696]
[1723100126298,19.33,154.56,154.52,6.9696]
[1723100126508,19.5,154.55,154.52,6.9696]
[1723100126798,0.17,154.54,154.52,6.9696]
[1723100126982,0.17,154.55,154.52,6.9696]
[1723100127888,0.34,154.56,154.52,6.9696]
[1723100129686,19.67,154.56,154.52,6.9696]
[1723100130272,395.86952067,154.63,154.53,17.111]
[1723100130602,19.33,154.57,154.53,17.111]
[1723100131995,19.33,154.59,154.53,36.441]
[1723100132167,79.91728243,154.64,154.53,36.441]
[1723100132168,19.33,154.58,154.53,17.111]
[1723100133182,0.34,154.57,154.53,17.111]
[1723100133394,19.33,154.6,154.53,17.111]
[1723100133578,0.17,154.59,154.53,36.441]
[1723100133796,19.5,154.59,154.53,36.441]
[1723100134395,19.33,154.57,154.53,17.111]
[1723100134780,0.17,154.56,154.53,17.111]
[1723100135090,64.67,154.56,154.53,17.111]
[1723100135675,19.33,154.55,154.53,17.111]
[1723100135902,0.34,154.54,154.53,17.111]
[1723100136906,0.33434309,154.63,154.53,17.111]
[1723100137206,19.33,154.57,154.53,17.111]
[1723100137387,19.67,154.56,154.53,17.111]
[1723100138497,0.34,154.56,154.53,17.111]
[1723100138877,0.17,154.55,154.53,17.111]
[1723100139302,0.34,154.55,154.53,17.111]
[1723100139900,19.67,154.55,154.53,17.111]
[1723100141192,0.34,154.55,154.53,17.111]
[1723100141396,0.17,154.54,154.53,17.111]
[1723100141596,0.34,154.54,154.53,17.111]
[1723100141912,64.33,154.57,154.53,17.111]
[1723100142211,86.68656136,154.64,154.53,36.441]
[1723100142406,19.33,154.6,154.54,19.33]
[1723100142593,19.5,154.59,154.53,36.441]
[1723100142793,19.33,154.59,154.53,36.441]
[1723100143107,0.17,154.58,154.53,36.441]
[1723100143304,0.17,154.58,154.53,17.111]
[1723100143489,0.17,154.59,154.53,36.441]
[1723100143889,19.5,154.59,154.53,36.441]
[1723100144314,64.33,154.58,154.53,17.111]
[1723100144647,0.17,154.57,154.53,17.111]
[1723100144934,0.34,154.57,154.53,17.111]
[1723100146009,253.6,154.66,154.54,26.2836]
[1723100146234,395.5654,154.67,154.55,19.33]
[1723100146407,19.33,154.61,154.55,19.33]
[1723100146614,19.33,154.61,154.54,26.2836]
[1723100146814,19.33,154.59,154.54,6.9536]
[1723100147240,19.67,154.58,154.54,6.9536]
[1723100147535,0.17,154.57,154.54,6.9536]
[1723100147835,19.33,154.6,154.55,15.5437]
[1723100148350,19.33,154.59,154.55,15.5437]
[1723100148537,19.33,154.6,154.55,15.5437]
[1723100148736,395.86829393,154.66,154.56,26.3223]
[1723100149036,19.33,154.62,154.56,26.3223]
[1723100149336,19.33,154.61,154.56,6.9923]
[1723100149553,6.76829393,154.66,154.56,6.9923]
[1723100149724,19.33,154.61,154.56,6.9923]
[1723100149918,0.17,154.6,154.56,6.9923]
[1723100150119,0.34,154.6,154.56,6.9923]
[1723100150337,6.76829393,154.66,154.58,25.5851]
[1723100150529,19.33,154.64,154.58,25.5851]
[1723100150728,389.1,154.66,154.59,19.33]
[1723100151031,19.33,154.65,154.59,19.33]
[1723100151428,19.33,154.65,154.58,25.5851]
[1723100151643,19.33,154.64,154.58,25.5851]
[1723100151940,19.33,154.63,154.58,6.2551]
[1723100152242,19.33,154.62,154.58,6.2551]
[1723100152440,19.5,154.61,154.58,6.2551]
[1723100152741,0.17,154.6,154.58,6.2551]
[1723100153316,19.33,154.59,154.58,6.2551]
[1723100153649,19.67,154.59,154.58,6.2551]
[1723100153942,0.34,154.59,154.58,6.2551]
[1723100154148,6.76849126,154.66,154.59,16.2761]
[1723100154436,19.33,154.62,154.59,16.2761]
[1723100154614,19.33,154.6,154.59,16.2761]
[1723100155335,19.33,154.61,154.59,16.2761]
[1723100155515,0.33434309,154.66,154.6,6.0813]
[1723100155719,253.6,154.72,154.6,25.4113]
[1723100155930,19.33,154.66,154.6,25.4113]
[1723100156121,19.33,154.65,154.6,6.0813]
[1723100157016,19.33,154.66,154.6,25.4113]
[1723100157215,395.86632006,154.71,154.6,25.4113]
[1723100157643,19.33,154.66,154.6,25.4113]
[1723100157945,6.462,154.75,154.63,25.333]
[1723100158233,19.33,154.69,154.63,25.333]
[1723100158440,19.33,154.68,154.63,6.003]
[1723100159748,28.14,154.71,154.63,6.003]
[1723100159945,0.17,154.7,154.63,6.003]
[1723100160248,0.34,154.7,154.63,6.003]
[1723100160439,28.14,154.69,154.63,6.003]
[1723100160612,28.14,154.67,154.63,6.003]
[1723100160816,45.34,154.66,154.63,6.003]
[1723100161127,0.34,154.66,154.63,6.003]
[1723100161323,45.34,154.67,154.63,6.003]
[1723100163140,28.14,154.7,154.64,16.3175]
[1723100163355,45.34,154.69,154.64,16.3175]
[1723100163544,0.17,154.69,154.64,16.3175]
[1723100164120,28.14,154.72,154.65,6.5962]
[1723100164425,389.1,154.73,154.65,6.5962]
[1723100164748,389.1,154.73,154.66,16.2569]
[1723100166252,45.0,154.72,154.66,16.2569]
[1723100166554,0.17,154.71,154.66,16.2569]
[1723100168416,28.14,154.7,154.66,16.2569]
[1723100168616,45.34,154.69,154.66,16.2569]
[1723100169619,28.14,154.68,154.66,16.2569]
[1723100169849,0.34,154.67,154.66,16.2569]
[1723100174861,45.34,154.67,154.66,16.2569]
[1723100176271,45.34,154.67,154.62,16.2124]
[1723100176560,28.14,154.64,154.62,16.2124]
[1723100176749,45.34,154.63,154.62,16.2124]
[1723100177548,0.34,154.63,154.62,16.2124]
[1723100177755,0.17,154.63,154.62,16.2124]
[1723100177953,28.14,154.68,154.62,16.2124]
[1723100178150,0.17,154.67,154.62,16.2124]
[1723100178350,0.17,154.67,154.63,6.1811]
[1723100179552,389.1,154.71,154.64,16.3348]
[1723100179760,28.14,154.72,154.65,6.2155]
[1723100179958,28.14,154.74,154.67,6.6398]
[1723100181350,0.17,154.73,154.67,6.6398]
[1723100182143,28.14,154.72,154.67,6.6398]
[1723100182348,0.17,154.71,154.67,6.6398]
[1723100182571,45.34,154.71,154.67,6.6398]
[1723100183270,0.34,154.71,154.67,6.6398]
[1723100183574,28.14,154.72,154.67,6.6398]
[1723100186977,45.34,154.71,154.67,6.6398]
[1723100188375,28.14,154.74,154.68,16.1323]
[1723100188759,28.47434309,154.74,154.68,16.1323]
[1723100188942,28.14,154.74,154.68,16.1323]
[1723100189553,45.17,154.73,154.68,16.1323]
[1723100189762,45.0,154.73,154.69,6.523]
[1723100190185,28.14,154.74,154.69,6.523]
[1723100190986,0.17,154.73,154.69,6.523]
[1723100191159,0.34,154.73,154.69,6.523]
[1723100191477,0.8149203,154.78,154.73,15.9417]
[1723100191693,0.8149203,154.78,154.74,7.77738321]
[1723100191858,0.8149203,154.78,154.76,6.4851]
[1723100192458,0.8149203,154.78,154.76,7.7771109]
[1723100192852,0.8149203,154.78,154.76,6.4851]
[1723100193286,389.1,154.86,154.77,15.5483]
[1723100193490,28.14,154.84,154.77,15.5483]
[1723100193654,0.33434309,154.88,154.77,15.5483]
[1723100193859,28.14,154.83,154.78,6.4403]
[1723100194373,28.14,154.85,154.78,6.4403]
[1723100194576,28.14,154.83,154.78,6.4403]
[1723100194967,28.14,154.81,154.78,6.4403]
[1723100195369,28.14,154.79,154.78,6.4403]
[1723100195587,73.14,154.79,154.78,6.4403]
[1723100195762,73.31,154.79,154.78,6.4403]
[1723100195963,73.48,154.79,154.78,6.4403]
[1723100196274,28.48,154.79,154.78,6.4403]
[1723100196466,73.48,154.79,154.78,6.4403]
[1723100196789,73.48,154.79,154.74,6.2056]
[1723100196988,28.14,154.76,154.74,6.2056]
[1723100197175,0.34,154.75,154.74,6.2056]
[1723100197899,0.17,154.75,154.74,6.2056]
[1723100201176,28.14,154.81,154.74,22.1356]
[1723100202491,28.14,154.79,154.74,22.1356]
[1723100202701,45.17,154.78,154.74,22.1356]
[1723100203493,0.17,154.77,154.74,22.1356]
[1723100204264,0.34,154.78,154.74,22.1356]
[1723100205089,45.34,154.78,154.74,22.1356]
[1723100206583,28.14,154.77,154.74,22.1356]
[1723100206797,45.34,154.76,154.74,22.1356]
[1723100207203,28.14,154.75,154.74,22.1356]
[1723100207385,73.31,154.75,154.74,22.1356]
[1723100207584,73.48,154.75,154.74,22.1356]
[1723100208450,73.48,154.75,154.64,6.3859]
[1723100208593,28.14,154.7,154.64,6.3859]